fUST/lending_fUST_20240905
["ID","MTS","AMOUNT","RATE_DAILY","PERIOD"]
[337168499,1725475839096,-500.0,0.00024506,2]
[337168500,1725475839106,-500.0,0.00024506,2]
[337168501,1725475839118,-500.0,0.00024506,2]
[337168502,1725475839128,-500.0,0.00024506,2]
[337168503,1725475839138,-500.0,0.00024506,2]
[337168504,1725475839148,-443.44414038,0.00024506,2]
[337168505,1725475839158,-500.0,0.00024506,2]
[337168506,1725475839168,-500.0,0.00024506,2]
[337168507,1725475839177,-500.0,0.00024506,2]
[337168508,1725475839187,-500.0,0.00024506,2]
[337168509,1725475839196,-500.0,0.00024506,2]
[337168510,1725475839206,-500.0,0.00024506,2]
[337168511,1725475839215,-500.0,0.00024506,2]
[337168512,1725475839225,-500.0,0.00024506,2]
[337168513,1725475839235,-500.0,0.00024506,2]
[337168514,1725475839244,-400.0,0.00024506,2]
[337168515,1725475839254,-500.0,0.00024506,2]
[337168516,1725475839263,-500.0,0.00024506,2]
[337168517,1725475839273,-500.0,0.00024506,2]
[337168518,1725475839282,-500.0,0.00024506,2]
[337168519,1725475839292,-500.0,0.00024506,2]
[337168520,1725475839302,-500.0,0.00024506,2]
[337168521,1725475839311,-500.0,0.00024506,2]
[337168522,1725475839321,-500.0,0.00024506,2]
[337168523,1725475839331,-500.0,0.00024506,2]
[337168524,1725475839341,-500.0,0.00024507,2]
[337168525,1725475839351,-270.06371988,0.00024507,2]
[337168526,1725475839363,-500.0,0.00024507,2]
[337168527,1725475839373,-494.06667026,0.00024507,2]
[337168528,1725475839383,-152.92944808,0.00024507,2]
[337168529,1725475839393,-500.0,0.00024507,2]
[337168530,1725475839402,-566.50912197,0.00024507,2]
[337168531,1725475839412,-500.0,0.00024507,2]
[337168532,1725475839422,-500.0,0.00024507,2]
[337168533,1725475839431,-500.0,0.00024507,2]
[337168534,1725475839441,-500.0,0.00024507,2]
[337168535,1725475839451,-500.0,0.00024507,2]
[337168536,1725475839460,-500.0,0.00024507,2]
[337168537,1725475839471,-500.0,0.00024507,2]
[337168538,1725475839481,-500.0,0.00024507,2]
[337168539,1725475839491,-500.0,0.00024507,2]
[337168540,1725475839501,-500.0,0.00024507,2]
[337168541,1725475839510,-500.0,0.00024507,2]
[337168542,1725475839520,-500.0,0.00024507,2]
[337168543,1725475839530,-490.16871219,0.00024507,2]
[337168544,1725475839540,-2288.034385,0.00024508,7]
[337168545,1725475839551,-2288.034385,0.00024508,7]
[337168546,1725475839561,-1637.501268,0.00024508,7]
[337168547,1725475839570,-1637.501268,0.00024508,7]
[337168548,1725475839580,-151.0,0.00024508,7]
[337168549,1725475839590,-152504.129899,0.00024508,3]
[337168550,1725475839600,-133411.7670153,0.00024508,2]
[337168551,1725475839616,-261693.7485341,0.00024508,2]
[337168557,1725475840734,-1363.80029486,0.00024508,2]
[337168558,1725475840746,-11060.47987231,0.00024508,2]
[337168568,1725475843756,-604.73019962,0.00024361,6]
[337168569,1725475843766,-132646.40856255,0.00024508,2]
[337168581,1725475846757,-1212.400065,0.00024508,2]
[337168652,1725477032773,-300.0,0.0002238,2]
[337168654,1725477032784,-300.0,0.0002238,2]
[337168656,1725477032795,-2124.10671173,0.00022381,2]
[337168700,1725477038973,-22775.89328827,0.00022381,2]
[337168701,1725477038983,-201.4213272,0.00022421,2]
[337168702,1725477038994,-161.66901,0.00023132,2]
[337168703,1725477039003,-161.66901,0.00023195,2]
[337168704,1725477039013,-161.66901,0.00023259,2]
[337168705,1725477039023,-161.66901,0.00023322,2]
[337168706,1725477039032,-161.66901,0.00023386,2]
[337168707,1725477039042,-5658.95318721,0.00023412,2]
[337168708,1725477039051,-161.66901,0.00023449,2]
[337168709,1725477039062,-9025.50972286,0.00023505,2]
[337168710,1725477039072,-161.66901,0.00023512,2]
[337168711,1725477039082,-161.66901,0.00023576,2]
[337168712,1725477039091,-161.66901,0.00023639,2]
[337168713,1725477039101,-161.66901,0.00023703,2]
[337168714,1725477039110,-161.66901,0.00023766,2]
[337168715,1725477039120,-227.3698549,0.00023778,2]
[337168716,1725477039130,-153.0,0.00023778,2]
[337168717,1725477039140,-153.0,0.00023778,2]
[337168718,1725477039149,-161.66901,0.0002383,2]
[337168719,1725477039160,-161.66901,0.00023893,2]
[337168720,1725477039169,-161.66901,0.00023957,2]
[337168721,1725477039179,-161.66901,0.0002402,2]
[337168722,1725477039189,-154.0215571,0.00024052,2]
[337168723,1725477039198,-161.66901,0.00024084,2]
[337168724,1725477039208,-161.66901,0.00024147,2]
[337168725,1725477039217,-161.66901,0.0002421,2]
[337168726,1725477039227,-604.7301996,0.00024215,6]
[337168727,1725477039237,-604.60954316,0.00024215,6]
[337168728,1725477039246,-2863.29991035,0.00024243,2]
[337168729,1725477039256,-2863.29991033,0.00024254,2]
[337168730,1725477039266,-161.66901,0.00024274,2]
[337168731,1725477039276,-739.02,0.00024333,3]
[337168732,1725477039288,-1041.98,0.00024333,3]
[337168733,1725477039298,-520.99,0.00024333,3]
[337168734,1725477039308,-260.49,0.00024333,3]
[337168735,1725477039319,-781.51,0.00024333,3]
[337168736,1725477039330,-161.66901,0.00024337,2]
[337168737,1725477039340,-360.40387943,0.00024341,2]
[337168738,1725477039350,-500.0,0.00024341,2]
[337168739,1725477039359,-500.0,0.00024341,2]
[337168740,1725477039371,-500.0,0.00024341,2]
[337168741,1725477039381,-500.0,0.00024341,2]
[337168742,1725477039390,-500.0,0.00024341,2]
[337168743,1725477039400,-368.56070092,0.00024341,2]
[337168744,1725477039411,-500.0,0.00024341,2]
[337168745,1725477039422,-500.0,0.00024341,2]
[337168746,1725477039432,-500.0,0.00024341,2]
[337168747,1725477039442,-500.0,0.00024341,2]
[337168748,1725477039451,-500.0,0.00024341,2]
[337168749,1725477039461,-500.0,0.00024341,2]
[337168750,1725477039470,-500.0,0.00024341,2]
[337168751,1725477039480,-500.0,0.00024341,2]
[337168752,1725477039489,-500.0,0.00024341,2]
[337168753,1725477039499,-500.0,0.00024341,2]
[337168754,1725477039508,-500.0,0.00024341,2]
[337168755,1725477039517,-500.0,0.00024341,2]
[337168756,1725477039527,-500.0,0.00024341,2]
[337168757,1725477039538,-500.0,0.00024341,2]
[337168758,1725477039547,-500.0,0.00024341,2]
[337168759,1725477039558,-500.0,0.00024341,2]
[337168760,1725477039568,-185.0,0.00024341,2]
[337168761,1725477039577,-500.0,0.00024341,2]
[337168762,1725477039586,-500.0,0.00024341,2]
[337168763,1725477039596,-500.0,0.00024341,2]
[337168764,1725477039606,-500.0,0.00024341,2]
[337168765,1725477039615,-500.0,0.00024341,2]
[337168766,1725477039626,-500.0,0.00024341,2]
[337168767,1725477039636,-500.0,0.00024341,2]
[337168768,1725477039649,-500.0,0.00024341,2]
[337168769,1725477039658,-500.0,0.00024341,2]
[337168770,1725477039667,-500.0,0.00024341,2]
[337168771,1725477039678,-500.0,0.00024341,2]
[337168772,1725477039687,-500.0,0.00024341,2]
[337168773,1725477039696,-500.0,0.00024341,2]
[337168774,1725477039706,-270.06371988,0.00024342,2]
[337168775,1725477039715,-500.0,0.00024342,2]
[337168776,1725477039725,-494.06667026,0.00024342,2]
[337168777,1725477039734,-500.0,0.00024342,2]
[337168778,1725477039743,-500.0,0.00024342,2]
[337168779,1725477039753,-566.50912197,0.00024342,2]
[337168780,1725477039764,-500.0,0.00024342,2]
[337168781,1725477039773,-500.0,0.00024342,2]
[337168782,1725477039783,-500.0,0.00024342,2]
[337168783,1725477039796,-500.0,0.00024342,2]
[337168784,1725477039805,-523.46487764,0.00024342,2]
[337168785,1725477039815,-500.0,0.00024342,2]
[337168786,1725477039824,-319.63328263,0.00024342,2]
[337168787,1725477039834,-500.0,0.00024342,2]
[337168788,1725477039843,-500.0,0.00024342,2]
[337168789,1725477039854,-500.0,0.00024342,2]
[337168790,1725477039865,-500.0,0.00024342,2]
[337168791,1725477039875,-500.0,0.00024342,2]
[337168792,1725477039884,-500.0,0.00024342,2]
[337168793,1725477039894,-237.85747058,0.00024342,2]
[337168794,1725477039903,-500.0,0.00024342,2]
[337168795,1725477039915,-500.0,0.00024342,2]
[337168796,1725477039925,-500.0,0.00024342,2]
[337168797,1725477039935,-500.0,0.00024342,2]
[337168798,1725477039945,-500.0,0.00024342,2]
[337168799,1725477039956,-500.0,0.00024342,2]
[337168800,1725477039966,-2176.25230668,0.00024343,2]
[337168801,1725477039977,-153209.137059,0.00024343,3]
[337168802,1725477039987,-676060.512429,0.00024343,2]
[337168803,1725477039997,-55555.0,0.00024353,3]
[337168804,1725477040008,-1000.0,0.00024353,2]
[337168805,1725477040020,-5559.70314496,0.00024362,2]
[337168806,1725477040032,-500.0,0.00024373,2]
[337168807,1725477040046,-158.63181578,0.00024373,2]
[337168808,1725477040056,-235.31894232,0.00024373,2]
[337168809,1725477040066,-319.411054,0.00024373,2]
[337168810,1725477040078,-500.0,0.00024373,2]
[337168811,1725477040088,-156.8571277,0.00024373,2]
[337168812,1725477040098,-500.0,0.00024373,2]
[337168813,1725477040107,-500.0,0.00024373,2]
[337168814,1725477040117,-160.18904169,0.00024373,2]
[337168815,1725477040128,-197.12273504,0.00024373,2]
[337168816,1725477040140,-343.36791284,0.00024373,2]
[337168817,1725477040150,-151.0,0.00024388,7]
[337168818,1725477040160,-151.0,0.00024388,7]
[337168819,1725477040170,-152.943172,0.00024388,7]
[337168820,1725477040180,-151.0,0.00024388,7]
[337168821,1725477040190,-151.0,0.00024388,7]
[337168822,1725477040202,-153209.137059,0.00024388,3]
[337168823,1725477040212,-153209.137059,0.00024388,3]
[337168824,1725477040222,-1510.185092,0.00024398,7]
[337168825,1725477040233,-1510.185092,0.00024398,7]
[337168826,1725477040242,-151.0,0.00024398,7]
[337168827,1725477040253,-151.0,0.00024398,7]
[337168828,1725477040263,-151.0,0.00024398,7]
[337168829,1725477040273,-151.0,0.00024398,7]
[337168830,1725477040283,-151.0,0.00024398,7]
[337168831,1725477040294,-151.0,0.00024398,7]
[337168832,1725477040303,-2890.557888,0.00024398,7]
[337168833,1725477040313,-151.0,0.00024398,7]
[337168834,1725477040327,-2890.557888,0.00024398,7]
[337168835,1725477040338,-151.0,0.00024398,7]
[337168836,1725477040350,-1637.501268,0.00024443,7]
[337168837,1725477040361,-1637.501268,0.00024443,7]
[337168838,1725477040371,-1637.501268,0.00024443,7]
[337168839,1725477040381,-1637.501268,0.00024443,7]
[337168840,1725477040392,-151.0,0.00024443,7]
[337168841,1725477040404,-151.0,0.00024443,7]
[337168842,1725477040416,-1510.185092,0.00024443,7]
[337168843,1725477040425,-1510.185092,0.00024443,7]
[337168844,1725477040435,-1510.185092,0.00024443,7]
[337168845,1725477040444,-1510.185092,0.00024443,7]
[337168846,1725477040454,-232.0,0.00024443,7]
[337168847,1725477040463,-151.0,0.00024443,7]
[337168848,1725477040473,-151.0,0.00024443,7]
[337168849,1725477040485,-151.0,0.00024443,7]
[337168850,1725477040497,-151.0,0.00024443,7]
[337168851,1725477040508,-151.0,0.00024443,7]
[337168852,1725477040520,-151.0,0.00024443,7]
[337168853,1725477040532,-151.0,0.00024443,7]
[337168854,1725477040545,-151.0,0.00024443,7]
[337168855,1725477040556,-2890.557888,0.00024443,7]
[337168856,1725477040566,-2890.557888,0.00024443,7]
[337168857,1725477040577,-151.0,0.00024443,7]
[337168858,1725477040588,-151.0,0.00024443,7]
[337168859,1725477040600,-2890.557888,0.00024443,7]
[337168860,1725477040610,-2890.557888,0.00024443,7]
[337168861,1725477040621,-151.0,0.00024443,7]
[337168862,1725477040631,-151.0,0.00024443,7]
[337168863,1725477040642,-2288.034385,0.00024443,7]
[337168864,1725477040651,-2288.034385,0.00024443,7]
[337168866,1725477040661,-151.0,0.00024443,7]
[337168867,1725477040671,-170.507214,0.00024443,7]
[337168868,1725477040680,-604.60954316,0.00024457,6]
[337168869,1725477040690,-500.0,0.00024473,2]
[337168870,1725477040702,-500.94504749,0.00024473,2]
[337168871,1725477040712,-500.0,0.00024473,2]
[337168872,1725477040723,-501.00052669,0.00024473,2]
[337168873,1725477040733,-151.0,0.00024488,2]
[337168874,1725477040745,-243.6805,0.00024587,2]
[337168875,1725477040755,-306.0,0.00024598,2]
[337168876,1725477040765,-153.0,0.00024598,2]
[337168877,1725477040776,-153.0,0.00024598,2]
[337168878,1725477040787,-153.0,0.00024598,2]
[337168879,1725477040797,-153.0,0.00024598,2]
[337168880,1725477040806,-153.0,0.00024598,2]
[337168881,1725477040816,-153.0,0.00024598,2]
[337168883,1725477040826,-153.0,0.00024598,2]
[337168885,1725477040839,-153.0,0.00024598,2]
[337168887,1725477040849,-153.0,0.00024598,2]
[337168888,1725477040859,-153.0,0.00024598,2]
[337168889,1725477040869,-153.0,0.00024598,2]
[337168890,1725477040880,-153.0,0.00024598,2]
[337168891,1725477040890,-153.0,0.00024598,2]
[337168893,1725477040902,-153.0,0.00024598,2]
[337168894,1725477040911,-153.0,0.00024598,2]
[337168895,1725477040921,-153.0,0.00024598,2]
[337168896,1725477040932,-153.0,0.00024598,2]
[337168897,1725477040943,-314.7050437,0.00024598,2]
[337168898,1725477040954,-150.112233,0.000246,4]
[337168899,1725477040964,-150.112233,0.000246,2]
[337168900,1725477040974,-150.112233,0.000246,5]
[337168901,1725477040984,-150.112233,0.000246,5]
[337168902,1725477040995,-150.112233,0.000246,3]
[337168903,1725477041008,-150.112233,0.000246,5]
[337168905,1725477041022,-150.112233,0.000246,4]
[337168907,1725477041034,-150.112233,0.000246,3]
[337168908,1725477041055,-150.112233,0.000246,4]
[337168909,1725477041068,-150.112233,0.000246,2]
[337168910,1725477041080,-153.0,0.000246,2]
[337168911,1725477041091,-420.0,0.00024617,2]
[337168913,1725477041101,-151.0,0.00024648,7]
[337168914,1725477041111,-602.029804,0.00024658,2]
[337168915,1725477041123,-200.0,0.00024658,15]
[337168916,1725477041132,-380.0,0.00024658,2]
[337168917,1725477041143,-151.0,0.00024658,7]
[337168918,1725477041154,-151.0,0.00024658,7]
[337168919,1725477041164,-328.6975756,0.00024658,2]
[337168920,1725477041175,-247.027118,0.00024658,2]
[337168921,1725477041185,-1637.501268,0.00024658,7]
[337168922,1725477041194,-1637.501268,0.00024658,7]
[337168923,1725477041206,-151.0,0.00024658,7]
[337168924,1725477041216,-1510.185092,0.00024658,7]
[337168925,1725477041227,-1510.185092,0.00024658,7]
[337168926,1725477041237,-151.0,0.00024658,7]
[337168927,1725477041247,-151.0,0.00024658,7]
[337168928,1725477041257,-151.0,0.00024658,7]
[337168929,1725477041267,-2890.557888,0.00024658,7]
[337168930,1725477041277,-151.0,0.00024658,7]
[337168931,1725477041289,-2890.557888,0.00024658,7]
[337168932,1725477041299,-151.0,0.00024658,7]
[337168933,1725477041308,-500.0,0.00024658,2]
[337168934,1725477041323,-500.0,0.00024658,2]
[337168935,1725477041333,-500.0,0.00024658,2]
[337168936,1725477041342,-555.0,0.00024658,2]
[337168937,1725477041352,-500.0,0.00024658,2]
[337168938,1725477041364,-500.0,0.00024658,2]
[337168939,1725477041374,-500.0,0.00024658,2]
[337168940,1725477041384,-500.0,0.00024658,2]
[337168941,1725477041396,-500.0,0.00024658,2]
[337168942,1725477041405,-500.0,0.00024658,2]
[337168943,1725477041415,-500.0,0.00024658,2]
[337168944,1725477041425,-500.0,0.00024658,2]
[337168945,1725477041435,-500.0,0.00024658,2]
[337168946,1725477041445,-500.0,0.00024658,2]
[337168947,1725477041454,-500.0,0.00024658,2]
[337168948,1725477041465,-500.0,0.00024658,2]
[337168949,1725477041475,-500.0,0.00024658,2]
[337168950,1725477041485,-500.0,0.00024658,2]
[337168951,1725477041495,-2288.034385,0.00024658,7]
[337168952,1725477041505,-2288.034385,0.00024658,7]
[337168953,1725477041515,-500.0,0.00024658,2]
[337168954,1725477041525,-166.25287133,0.00024658,2]
[337168955,1725477041535,-500.0,0.00024658,2]
[337168956,1725477041546,-500.0,0.00024658,2]
[337168957,1725477041556,-500.0,0.00024658,2]
[337168958,1725477041567,-500.0,0.00024658,2]
[337168959,1725477041578,-500.0,0.00024658,2]
[337168960,1725477041589,-450.0,0.00024658,2]
[337168961,1725477041599,-151.094176,0.00024658,7]
[337168962,1725477041609,-151.0,0.00024658,7]
[337168963,1725477041618,-151.0,0.00024658,7]
[337168964,1725477041630,-151.0,0.00024658,7]
[337168965,1725477041641,-170.89330773,0.00024658,2]
[337168966,1725477041651,-500.0,0.00024658,2]
[337168967,1725477041662,-500.0,0.00024658,2]
[337168968,1725477041673,-500.0,0.00024658,2]
[337168969,1725477041684,-500.0,0.00024658,2]
[337168970,1725477041695,-500.0,0.00024658,2]
[337168971,1725477041708,-500.0,0.00024658,2]
[337168972,1725477041719,-500.0,0.00024658,2]
[337168973,1725477041729,-500.0,0.00024658,2]
[337168974,1725477041740,-500.0,0.00024658,2]
[337168975,1725477041751,-500.0,0.00024658,2]
[337168976,1725477041762,-500.0,0.00024658,2]
[337168977,1725477041771,-500.0,0.00024658,2]
[337168978,1725477041783,-500.0,0.00024658,2]
[337168979,1725477041793,-500.0,0.00024658,2]
[337168980,1725477041804,-500.0,0.00024658,2]
[337168981,1725477041816,-500.0,0.00024658,2]
[337168982,1725477041826,-388.62942885,0.00024658,2]
[337168983,1725477041838,-500.0,0.00024658,2]
[337168984,1725477041848,-500.0,0.00024658,2]
[337168985,1725477041860,-500.0,0.00024658,2]
[337168986,1725477041870,-500.0,0.00024658,2]
[337168987,1725477041879,-500.0,0.00024658,2]
[337168988,1725477041889,-500.0,0.00024658,2]
[337168989,1725477041899,-500.0,0.00024658,2]
[337168990,1725477041909,-500.0,0.00024658,2]
[337168991,1725477041918,-500.0,0.00024658,2]
[337168992,1725477041928,-500.0,0.00024658,2]
[337168993,1725477041938,-500.0,0.00024658,2]
[337168994,1725477041948,-500.0,0.00024658,2]
[337168995,1725477041958,-500.0,0.00024658,2]
[337168996,1725477041967,-151.0,0.00024673,7]
[337168997,1725477041977,-623.95902438,0.0002469,4]
[337168998,1725477041986,-604.60954316,0.00024699,6]
[337168999,1725477041996,-150.01,0.0002471,2]
[337169000,1725477042005,-4835.69442716,0.0002471,2]
[337169001,1725477042015,-155.0,0.0002473,12]
[337169002,1725477042024,-1637.501268,0.0002479,7]
[337169003,1725477042033,-1637.501268,0.0002479,7]
[337169004,1725477042042,-1510.185092,0.0002479,7]
[337169005,1725477042051,-1510.185092,0.0002479,7]
[337169006,1725477042061,-151.0,0.0002479,7]
[337169007,1725477042070,-151.0,0.0002479,7]
[337169008,1725477042079,-191.37837,0.0002479,7]
[337169009,1725477042088,-2890.557888,0.0002479,7]
[337169010,1725477042098,-151.0,0.0002479,7]
[337169011,1725477042107,-2890.557888,0.0002479,7]
[337169012,1725477042117,-151.0,0.0002479,7]
[337169013,1725477042126,-2288.034385,0.0002479,7]
[337169014,1725477042136,-2288.034385,0.0002479,7]
[337169015,1725477042145,-151.0,0.0002479,7]
[337169016,1725477042155,-151.0,0.0002479,7]
[337169017,1725477042165,-151.0,0.0002479,7]
[337169018,1725477042174,-135170.54,0.000248,14]
[337169019,1725477042184,-151.0,0.000248,7]
[337169020,1725477042194,-1637.501268,0.000248,7]
[337169021,1725477042203,-1637.501268,0.000248,7]
[337169022,1725477042214,-1510.185092,0.000248,7]
[337169023,1725477042224,-1510.185092,0.000248,7]
[337169024,1725477042234,-151.0,0.000248,7]
[337169025,1725477042244,-151.0,0.000248,7]
[337169026,1725477042253,-2890.557888,0.000248,7]
[337169027,1725477042263,-151.0,0.000248,7]
[337169028,1725477042273,-2890.557888,0.000248,7]
[337169029,1725477042282,-151.0,0.000248,7]
[337169030,1725477042292,-2288.034385,0.000248,7]
[337169031,1725477042302,-2288.034385,0.000248,7]
[337169032,1725477042312,-151.0,0.000248,7]
[337169033,1725477042325,-151.0,0.000248,7]
[337169034,1725477042335,-151.0,0.000248,7]
[337169035,1725477042346,-1000.0,0.00024921,2]
[337169036,1725477042357,-1000.0,0.00024921,2]
[337169037,1725477042368,-301.6716771,0.00024941,6]
[337169038,1725477042379,-1000.0,0.00024962,2]
[337169039,1725477042390,-1000.0,0.00024962,3]
[337169040,1725477042403,-310.18713937,0.00024973,2]
[337169041,1725477042415,-200.15807288,0.00024973,2]
[337169042,1725477042427,-158.57494327,0.00024973,2]
[337169043,1725477042437,-158.63137592,0.00024973,2]
[337169044,1725477042448,-500.0,0.00024973,2]
[337169045,1725477042458,-255.0334715,0.00024973,2]
[337169046,1725477042468,-190.70392364,0.00024973,2]
[337169047,1725477042479,-501.84631074,0.00024973,2]
[337169048,1725477042489,-500.0,0.00024973,2]
[337169049,1725477042500,-500.0,0.00024973,2]
[337169050,1725477042510,-500.0,0.00024973,2]
[337169051,1725477042519,-202.98794253,0.00024973,2]
[337169052,1725477042529,-530.72255491,0.00024973,2]
[337169053,1725477042539,-151.0,0.0002499,7]
[337169054,1725477042548,-10364.0,0.00025,2]
[337169055,1725477042558,-3346.57422004,0.00025,7]
[337169056,1725477042567,-1000.0,0.00025,5]
[337169057,1725477042577,-6710.1234283,0.00025,2]
[337169058,1725477042586,-183324.24138719,0.00025,2]
[337169059,1725477042601,-261693.7485341,0.00025,2]
[337169060,1725477042623,-2863.29991033,0.00024266,2]
[337169061,1725477042633,-307.0,0.000248,2]
[337169062,1725477042642,-2538.46533345,0.00025,2]
[337169159,1725478231867,-300.0,0.00022386,2]
[337169161,1725478231877,-220.517,0.00022387,2]
[337169176,1725478238202,-24679.483,0.00022387,2]
[337169177,1725478238211,-935.94263174,0.00023093,2]
[337169178,1725478238221,-254.13284002,0.00023093,2]
[337169179,1725478238231,-250.0,0.00023119,2]
[337169180,1725478238240,-250.0,0.00023182,2]
[337169181,1725478238251,-184.909125,0.00023193,2]
[337169182,1725478238261,-250.0,0.00023246,2]
[337169183,1725478238270,-250.0,0.00023309,2]
[337169184,1725478238279,-250.0,0.00023372,2]
[337169185,1725478238288,-250.0,0.00023436,2]
[337169186,1725478238298,-1048.03036105,0.00023469,2]
[337169187,1725478238307,-250.0,0.00023499,2]
[337169188,1725478238318,-250.0,0.00023563,2]
[337169189,1725478238329,-250.0,0.00023626,2]
[337169190,1725478238340,-250.0,0.00023689,2]
[337169191,1725478238351,-250.0,0.00023753,2]
[337169192,1725478238360,-250.0,0.00023816,2]
[337169193,1725478238370,-442.5469175,0.00023878,2]
[337169194,1725478238379,-250.0,0.0002388,2]
[337169195,1725478238389,-250.0,0.00023943,2]
[337169196,1725478238398,-319.54953753,0.00024,2]
[337169197,1725478238408,-250.0,0.00024006,2]
[337169198,1725478238417,-250.0,0.0002407,2]
[337169199,1725478238429,-2290.6399283,0.00024133,2]
[337169200,1725478238438,-250.0,0.00024133,2]
[337169201,1725478238447,-1000.0,0.00024133,2]
[337169202,1725478238457,-2290.63992826,0.00024143,2]
[337169203,1725478238466,-2348.99822382,0.00024145,2]
[337169204,1725478238476,-2290.63992826,0.00024153,2]
[337169205,1725478238488,-2290.63992826,0.00024163,2]
[337169206,1725478238499,-2290.63992826,0.00024173,2]
[337169207,1725478238511,-192.41243596,0.00024177,2]
[337169208,1725478238521,-250.0,0.00024197,2]
[337169209,1725478238534,-236.91,0.00024212,3]
[337169210,1725478238546,-710.75,0.00024212,3]
[337169211,1725478238556,-360.40387943,0.00024221,2]
[337169212,1725478238569,-500.0,0.00024221,2]
[337169213,1725478238580,-500.0,0.00024221,2]
[337169214,1725478238591,-500.0,0.00024221,2]
[337169215,1725478238600,-500.0,0.00024221,2]
[337169216,1725478238610,-500.0,0.00024221,2]
[337169217,1725478238621,-500.0,0.00024221,2]
[337169218,1725478238630,-500.0,0.00024221,2]
[337169219,1725478238640,-368.56070092,0.00024221,2]
[337169220,1725478238652,-500.0,0.00024221,2]
[337169221,1725478238663,-500.0,0.00024221,2]
[337169222,1725478238675,-500.0,0.00024221,2]
[337169223,1725478238685,-500.0,0.00024221,2]
[337169224,1725478238699,-500.0,0.00024221,2]
[337169225,1725478238709,-500.0,0.00024221,2]
[337169226,1725478238719,-400.0,0.00024221,2]
[337169227,1725478238730,-500.0,0.00024221,2]
[337169228,1725478238739,-500.0,0.00024221,2]
[337169229,1725478238749,-500.0,0.00024221,2]
[337169230,1725478238759,-500.0,0.00024221,2]
[337169231,1725478238772,-500.0,0.00024221,2]
[337169232,1725478238782,-500.0,0.00024221,2]
[337169233,1725478238792,-500.0,0.00024221,2]
[337169234,1725478238801,-500.0,0.00024221,2]
[337169235,1725478238811,-500.0,0.00024221,2]
[337169236,1725478238820,-500.0,0.00024221,2]
[337169237,1725478238829,-500.0,0.00024221,2]
[337169238,1725478238839,-500.0,0.00024221,2]
[337169239,1725478238848,-500.0,0.00024221,2]
[337169240,1725478238858,-500.0,0.00024221,2]
[337169241,1725478238868,-500.0,0.00024221,2]
[337169242,1725478238878,-500.0,0.00024221,2]
[337169243,1725478238887,-500.0,0.00024221,2]
[337169244,1725478238896,-500.0,0.00024221,2]
[337169245,1725478238906,-500.0,0.00024221,2]
[337169246,1725478238915,-500.0,0.00024221,2]
[337169247,1725478238927,-500.0,0.00024221,2]
[337169248,1725478239258,-500.0,0.00024221,2]
[337169249,1725478239278,-500.0,0.00024221,2]
[337169250,1725478239289,-500.0,0.00024221,2]
[337169251,1725478239298,-500.0,0.00024221,2]
[337169252,1725478239310,-500.0,0.00024221,2]
[337169253,1725478239320,-500.0,0.00024221,2]
[337169254,1725478239330,-500.0,0.00024221,2]
[337169255,1725478239342,-500.0,0.00024221,2]
[337169256,1725478239355,-500.0,0.00024221,2]
[337169257,1725478239366,-500.0,0.00024221,2]